bitfinex/quotes_BTCUSD_20251124
["timestamp","ask_amount","ask_price","bid_price","bid_amount"]
[1763996753130,0.02150064,86562.0,86557.0,7.43109966]
[1763996753351,0.02150064,86561.0,86557.0,7.43109966]
[1763996753556,0.05594,86565.0,86557.0,7.43109966]
[1763996753557,0.02150064,86560.0,86557.0,7.43109966]
[1763996753759,0.02150064,86559.0,86557.0,7.43109966]
[1763996753954,0.02150064,86558.0,86557.0,7.43109966]
[1763996755385,0.05594,86577.0,86557.0,7.43109966]
[1763996755386,0.02757,86601.0,86558.0,0.05789]
[1763996755585,0.10181202,86600.0,86559.0,0.02310562]
[1763996755784,0.09270902,86587.0,86557.0,7.43861966]
[1763996756189,0.05594,86586.0,86558.0,0.02310589]
[1763996756798,0.05594,86586.0,86557.0,7.43861966]
[1763996757026,0.05594,86586.0,86558.0,0.01875824]
[1763996757556,0.05594,86586.0,86559.0,0.00752]
[1763996757757,0.02822637,86585.0,86559.0,0.00752]
[1763996758165,0.05594,86584.0,86559.0,0.00752]
[1763996758306,0.02822637,86583.0,86559.0,0.00752]
[1763996758693,0.09270902,86573.0,86557.0,7.43109966]
[1763996759117,0.05594,86572.0,86557.0,7.43109966]
[1763996759529,0.02757,86558.0,86557.0,7.43109966]
[1763996759736,0.08351,86558.0,86557.0,7.43109966]
[1763996760187,0.05579637,86567.0,86557.0,7.43109966]
[1763996760809,0.09270902,86558.0,86557.0,7.43109966]
[1763996761212,0.07064691,86567.0,86557.0,7.43109966]
[1763996761213,0.05579637,86567.0,86557.0,7.43109966]
[1763996761428,0.03474114,86586.0,86559.0,2.0]
[1763996761676,0.50752,86622.0,86571.0,0.323]
[1763996761881,0.09270902,86605.0,86571.0,0.323]
[1763996762093,0.02822637,86604.0,86572.0,0.05789]
[1763996762301,0.5,86635.0,86574.0,2.01155081]
[1763996762506,0.02822637,86618.0,86581.0,0.09270902]
[1763996762739,0.02822637,86628.0,86581.0,0.09270902]
[1763996762957,0.09270902,86621.0,86582.0,0.45789]
[1763996763179,0.09270902,86621.0,86573.0,0.01907094]
[1763996763180,0.09270902,86610.0,86583.0,0.00752]
[1763996763416,0.05594,86619.0,86584.0,0.05789]
[1763996763628,0.02062374,86618.0,86584.0,0.05789]
[1763996763829,0.02062374,86618.0,86571.0,0.15059902]
[1763996764053,0.09270902,86610.0,86571.0,0.15059902]
[1763996764270,0.34567474,86609.0,86572.0,0.00752]
[1763996764484,0.37894,86617.0,86573.0,0.01155094]
[1763996764485,0.06346,86617.0,86573.0,0.01155094]
[1763996764709,0.02283674,86616.0,86577.0,2.0]
[1763996764913,0.09270902,86610.0,86571.0,0.00039093]
[1763996765126,0.12093539,86609.0,86578.0,0.00752]
[1763996765353,0.05210249,86634.0,86578.0,0.00752]
[1763996765354,0.05594,86671.0,86617.0,0.02872]
[1763996765567,0.00025342,86688.0,86640.0,0.80213481]
[1763996765785,0.08416637,86683.0,86641.0,0.05789]
[1763996765993,0.09270902,86672.0,86641.0,0.00752]
[1763996766195,0.02822637,86671.0,86641.0,0.00752]
[1763996766717,0.001,86671.0,86642.0,0.05789]
[1763996766950,0.001,86671.0,86650.0,0.80213481]
[1763996767164,0.02822637,86680.0,86642.0,0.05789]
[1763996767376,0.09270902,86675.0,86642.0,0.05789]
[1763996767595,0.02822637,86674.0,86643.0,0.00752]
[1763996767815,0.026181,86674.0,86643.0,0.00752]
[1763996768023,0.02822637,86683.0,86660.0,0.80213481]
[1763996768235,0.02822637,86683.0,86661.0,0.00752]
[1763996768447,0.05594,86686.0,86648.0,0.09270902]
[1763996768668,0.09270902,86682.0,86649.0,0.00752]
[1763996768885,0.02822637,86681.0,86650.0,0.80213481]
[1763996769103,0.00025342,86688.0,86661.0,0.09270902]
[1763996769526,0.00025342,86688.0,86662.0,0.05789]
[1763996770211,0.00025342,86688.0,86663.0,0.00752]
[1763996770421,0.00025342,86688.0,86664.0,0.05789]
[1763996770628,0.00025342,86688.0,86670.0,0.80213481]
[1763996770833,0.00025342,86688.0,86687.0,0.02621]
[1763996771049,0.00025342,86688.0,86687.0,0.03373]
[1763996771252,0.00025342,86688.0,86687.0,0.09162]
[1763996771666,0.00025342,86688.0,86687.0,0.03373]
[1763996771896,0.00064506,86688.0,86687.0,0.05789]
[1763996772108,0.00064506,86688.0,86687.0,0.06541]
[1763996772527,0.00064506,86688.0,86687.0,0.00752]
[1763996772741,0.00064506,86688.0,86687.0,0.001]
[1763996773190,0.00064506,86688.0,86678.0,0.02872]
[1763996773395,0.00064506,86688.0,86679.0,0.05789]
[1763996773608,0.00064506,86688.0,86687.0,0.001]
[1763996774018,0.00064506,86688.0,86687.0,0.05593]
[1763996774921,0.00064506,86688.0,86687.0,0.05493]
[1763996775508,0.00064506,86688.0,86678.0,0.02872]
[1763996775842,0.00064506,86688.0,86674.0,0.00752]
[1763996776053,0.00064506,86688.0,86687.0,0.001]
[1763996776467,0.00064506,86688.0,86666.0,0.05493]
[1763996776693,0.00064506,86688.0,86667.0,0.00752]
[1763996777819,0.09270902,86687.0,86667.0,0.00752]
[1763996778005,0.02425481,86686.0,86667.0,0.00752]
[1763996778206,0.09270902,86678.0,86645.0,0.01332]
[1763996778430,0.02040011,86677.0,86645.0,0.01332]
[1763996778644,0.02040011,86677.0,86646.0,0.05493]
[1763996778887,0.06617291,86677.0,86644.0,0.00752]
[1763996779099,2.0,86675.0,86644.0,0.00752]
[1763996779343,0.04951691,86674.0,86634.0,0.00752]
[1763996779546,0.09270902,86659.0,86626.0,0.02881]
[1763996779961,0.00752,86665.0,86627.0,0.07291499]
[1763996780200,0.09270902,86660.0,86627.0,0.07291499]
[1763996780435,0.09270902,86660.0,86628.0,0.05493]
[1763996780661,0.0641329,86659.0,86624.0,0.00752]
[1763996780882,0.09270902,86647.0,86628.0,0.000117]
[1763996781883,0.05411,86646.0,86628.0,0.000117]
[1763996782109,0.00752,86649.0,86628.0,0.000117]
[1763996782317,0.09270902,86647.0,86628.0,0.000117]
[1763996782952,0.001,86646.0,86628.0,0.000117]
[1763996783160,0.09270902,86645.0,86628.0,0.000117]
[1763996783394,0.001,86646.0,86635.0,0.72067323]
[1763996783602,0.001,86646.0,86637.0,2.0]
[1763996783800,0.001,86646.0,86638.0,0.02308455]
[1763996784023,0.001,86646.0,86636.0,0.05493]
[1763996784230,0.02108474,86671.0,86629.0,0.10022902]
[1763996784461,0.05411,86672.0,86629.0,0.10022902]
[1763996784462,0.09270902,86666.0,86630.0,0.07631624]
[1763996784660,0.001,86647.0,86631.0,0.05493]
[1763996784864,0.001,86647.0,86632.0,0.02094899]
[1763996785061,0.09270902,86666.0,86632.0,0.02094899]
[1763996785062,0.11362051,86666.0,86632.0,0.02094899]
[1763996785328,0.10732351,86666.0,86633.0,0.01605299]
[1763996785530,0.12093539,86666.0,86633.0,0.07801589]
[1763996785961,0.02822637,86666.0,86633.0,0.02308589]
[1763996786183,0.74067321,86710.0,86642.0,0.09270902]
[1763996786396,0.02479677,86685.0,86665.0,0.01129]
[1763996786610,0.02822637,86685.0,86665.0,0.01129]
[1763996786829,0.05421,86697.0,86665.0,0.06622]
[1763996786830,0.0001,86697.0,86665.0,0.06622]
[1763996787006,0.02822637,86694.0,86665.0,0.06622]
[1763996787466,0.02822637,86694.0,86666.0,0.49270902]
[1763996787674,0.00064506,86688.0,86666.0,0.49270902]
[1763996788060,0.00064506,86688.0,86667.0,0.05493]
[1763996788394,0.00064506,86688.0,86667.0,0.06646841]
[1763996788572,0.00064506,86688.0,86672.0,0.01]
[1763996789016,0.00064506,86688.0,86676.0,0.23074262]
[1763996789225,0.00064506,86688.0,86675.0,0.01153735]
[1763996789226,0.00064506,86688.0,86683.0,0.09270902]
[1763996789556,0.00064506,86688.0,86685.0,0.01153602]
[1763996789789,0.00064506,86688.0,86687.0,0.01]
[1763996790214,0.00064506,86688.0,86687.0,0.11703249]
[1763996790441,0.00052506,86688.0,86687.0,2.44003249]
[1763996791457,0.0001,86697.0,86687.0,2.44003249]
[1763996791458,0.0001,86697.0,86696.0,0.38510249]
[1763996791671,0.0002,86750.0,86725.0,2.0]
[1763996791901,0.0002,86750.0,86749.0,0.0144]
[1763996792187,0.0002,86750.0,86749.0,0.02173366]
[1763996792394,0.0002,86750.0,86749.0,0.07666366]
[1763996792820,0.0002,86750.0,86749.0,0.07678066]
[1763996793039,0.0002,86750.0,86749.0,0.000117]
[1763996793705,0.05431,86750.0,86749.0,0.000117]
[1763996794135,0.07276395,86750.0,86749.0,0.001117]
[1763996794352,0.07276395,86750.0,86680.0,0.72067323]
[1763996794353,0.4661625,86750.0,86680.0,0.72067323]
[1763996794586,0.4661625,86750.0,86681.0,0.00752]
[1763996794587,2.0,86736.0,86681.0,0.00752]
[1763996794803,0.09270902,86704.0,86680.0,0.00011709]
[1763996795030,0.323,86700.0,86680.0,0.00011709]
[1763996795251,0.02699,86681.0,86680.0,0.00011709]
[1763996795675,0.0811,86681.0,86680.0,0.00011709]
[1763996796124,0.05411,86717.0,86680.0,0.05504709]
[1763996796343,0.09270902,86709.0,86680.0,0.00011709]
[1763996796555,0.35122637,86708.0,86680.0,0.00011709]
[1763996796771,0.09270902,86695.0,86680.0,0.00011709]
[1763996796983,0.35122637,86694.0,86680.0,0.00011709]
[1763996797228,0.37711,86694.0,86680.0,0.00011709]
[1763996797442,0.09270902,86681.0,86680.0,0.00011709]
[1763996797654,0.09270902,86681.0,86622.0,0.4]
[1763996797655,0.37510249,86677.0,86622.0,0.00752]
[1763996797889,0.37510249,86675.0,86628.0,4.93817064]
[1763996798102,0.09270902,86663.0,86629.0,0.02308695]
[1763996798315,0.09270902,86663.0,86630.0,0.05493]
[1763996798557,0.05411,86675.0,86631.0,0.02308642]
[1763996798761,0.00752,86679.0,86631.0,0.02308642]
[1763996798970,0.002,86677.0,86642.0,0.10425076]
[1763996799194,0.002,86677.0,86662.0,0.01153908]
[1763996799407,0.002,86677.0,86663.0,0.05187337]
[1763996799613,0.002,86677.0,86663.0,0.00752]
[1763996800026,0.02091656,86693.0,86663.0,0.00752]
[1763996800255,0.06629673,86692.0,86663.0,0.00752]
[1763996800465,0.07545631,86692.0,86663.0,0.00791164]
[1763996800666,0.323,86690.0,86663.0,0.00791164]
[1763996801290,0.37711,86690.0,86663.0,0.00039164]
[1763996801503,0.09270902,86681.0,86663.0,0.00039164]
[1763996801772,0.00752,86690.0,86663.0,0.00039164]
[1763996801968,0.06163,86690.0,86663.0,0.00039164]
[1763996802181,0.00752,86689.0,86663.0,0.00039164]
[1763996802631,0.09270902,86681.0,86663.0,0.00039164]
[1763996803057,0.02248,86664.0,86663.0,0.00039164]
[1763996803476,0.07468,86664.0,86663.0,0.00039164]
[1763996803683,0.02248,86677.0,86663.0,0.00039164]
[1763996803890,0.05070637,86687.0,86663.0,0.00039164]
[1763996804090,0.09270902,86680.0,86663.0,0.00039164]
[1763996804579,0.02248,86697.0,86663.0,0.00039164]
[1763996804826,0.02847975,86696.0,86679.0,0.00526]
[1763996805582,0.00025338,86696.0,86676.0,0.02532]
[1763996805777,0.02847975,86696.0,86677.0,0.02307417]
[1763996805992,0.00025338,86696.0,86677.0,0.02307417]
[1763996806185,0.00025338,86696.0,86677.0,0.01518487]
[1763996806384,0.00025338,86696.0,86677.0,0.02208149]
[1763996807255,0.00025338,86696.0,86677.0,0.02215312]
[1763996807431,0.00025338,86696.0,86678.0,0.0543]
[1763996807646,0.00025338,86696.0,86678.0,0.14700902]
[1763996808085,0.00025338,86696.0,86678.0,0.09270902]
[1763996808252,0.00025338,86696.0,86679.0,0.05179]
[1763996810035,0.00025338,86696.0,86682.0,0.01]
[1763996810246,0.01810115,86739.0,86690.0,0.01153535]
[1763996810429,0.00872364,86750.0,86710.0,0.09270902]
[1763996810430,0.0002,86750.0,86710.0,0.09270902]
[1763996810626,0.12026177,86748.0,86711.0,0.00752]
[1763996810830,0.323,86747.0,86711.0,0.00752]
[1763996811110,0.02822637,86746.0,86712.0,0.05179]
[1763996811313,0.01936049,86746.0,86712.0,0.05179]
[1763996811514,0.001,86739.0,86712.0,0.05190712]
[1763996812087,0.001,86739.0,86713.0,0.09270902]
[1763996812296,0.09270902,86761.0,86738.0,0.02517]
[1763996813228,2.0,86782.0,86739.0,0.05179]
[1763996813431,2.0,86781.0,86739.0,0.05179]
[1763996813655,0.323,86780.0,86739.0,0.05179]
[1763996813860,0.08539184,86782.0,86739.0,0.05179]
[1763996814080,0.09270902,86769.0,86739.0,0.05179]
[1763996814288,0.001,86761.0,86739.0,0.05179]
[1763996814580,0.001,86761.0,86739.0,0.05190712]
[1763996814820,0.09270902,86769.0,86739.0,0.00011712]
[1763996815224,0.323,86765.0,86739.0,0.00011712]
[1763996815431,0.09270902,86755.0,86739.0,0.00011712]
[1763996815834,0.323,86765.0,86739.0,0.00011712]
[1763996816186,0.09270902,86754.0,86739.0,0.00011712]
[1763996816592,0.00139285,86740.0,86739.0,0.00011712]
[1763996817967,0.02435285,86740.0,86739.0,0.00011712]
[1763996818178,0.00139285,86740.0,86739.0,0.00111712]
[1763996819226,0.00139285,86740.0,86739.0,0.00011712]
[1763996820066,0.00139285,86740.0,86739.0,0.05190712]
[1763996820473,0.00139285,86740.0,86739.0,0.00011712]
[1763996820921,0.00139285,86740.0,86739.0,0.05190712]
[1763996821121,0.00139285,86740.0,86739.0,0.00011712]
[1763996823046,0.5,86789.0,86751.0,0.01152724]
[1763996823256,2.0,86793.0,86779.0,0.02517]
[1763996823471,0.02699,86805.0,86779.0,0.02517]
[1763996824112,0.09270902,86802.0,86779.0,0.02517]
[1763996824325,0.001,86789.0,86773.0,0.00748]
[1763996825402,0.09310154,86802.0,86773.0,0.00748]
[1763996825607,0.09270902,86788.0,86773.0,0.00748]
[1763996825816,0.09310154,86802.0,86773.0,0.00748]
[1763996826251,0.09310154,86802.0,86774.0,0.05179]
[1763996826471,0.00039252,86802.0,86774.0,0.05179]
[1763996826678,0.00139252,86802.0,86774.0,0.05179]
[1763996827110,0.00039252,86802.0,86801.0,0.02517]
[1763996827322,0.00039252,86802.0,86801.0,0.03265]
[1763996827576,0.00039252,86802.0,86801.0,0.00748]
[1763996827791,0.00039252,86802.0,86771.0,0.05179]
[1763996828009,0.00039252,86802.0,86801.0,0.02517]
[1763996828231,0.0002,86830.0,86801.0,0.08444]
[1763996828447,0.0012,86850.0,86829.0,0.02517]
[1763996828690,0.0012,86850.0,86829.0,0.00752]
[1763996828911,0.0012,86850.0,86830.0,0.07696]
[1763996829115,0.0012,86850.0,86830.0,0.02517]
[1763996829343,0.0012,86850.0,86831.0,0.05931]
[1763996829751,0.00290848,86832.0,86831.0,0.05942712]
[1763996829968,0.00290848,86832.0,86831.0,0.05190712]
[1763996830194,0.00290848,86832.0,86831.0,0.05942712]
[1763996830417,0.0012,86850.0,86831.0,2.05942712]
[1763996830634,0.0012,86850.0,86834.0,2.0]
[1763996830860,0.0012,86850.0,86832.0,0.05179]
[1763996831072,0.0012,86850.0,86835.0,0.00752]
[1763996831499,0.0012,86850.0,86836.0,0.05179]
[1763996831935,0.0012,86850.0,86834.0,0.00752]
[1763996832155,2.0,86848.0,86831.0,0.00011712]
[1763996832365,0.09270902,86849.0,86831.0,0.00011712]
[1763996832610,0.0012,86850.0,86831.0,0.00011712]
[1763996833443,0.09270902,86846.0,86831.0,0.00011712]
[1763996833644,0.001,86849.0,86831.0,0.00011712]
[1763996834087,0.0012,86850.0,86831.0,0.00011712]
[1763996834494,0.0022,86850.0,86831.0,0.00011712]
[1763996835490,0.09270902,86843.0,86831.0,0.00011712]
[1763996835896,0.01347,86832.0,86831.0,0.00011712]
[1763996836333,0.04092,86832.0,86831.0,0.00011712]
[1763996836559,0.01347,86832.0,86831.0,0.00011712]
[1763996836681,0.01347,86839.0,86831.0,0.00011712]
[1763996837289,0.00025276,86840.0,86831.0,0.00011712]
[1763996837489,0.001,86832.0,86831.0,0.00011712]
[1763996838766,0.00025276,86840.0,86831.0,0.00011712]
[1763996839201,2.323,86838.0,86831.0,0.00011712]
[1763996839542,0.37510249,86833.0,86830.0,2.49108712]
[1763996839671,2.37510249,86831.0,86830.0,2.49120426]
[1763996840300,2.39643565,86831.0,86830.0,2.49120426]
[1763996840546,2.40710254,86831.0,86830.0,2.49120426]
[1763996840774,2.40395526,86831.0,86830.0,2.49120426]
[1763996840935,2.41462206,86831.0,86830.0,2.49120426]
[1763996841139,2.53652206,86831.0,86830.0,0.56454888]
[1763996841407,2.53652206,86831.0,86760.0,0.00752]
[1763996841408,0.323,86788.0,86760.0,0.00752]
[1763996841617,0.323,86779.0,86760.0,0.00039252]
[1763996841818,0.323,86787.0,86760.0,0.00039252]
[1763996841975,0.00752,86788.0,86760.0,0.00039252]
[1763996842994,0.09270902,86783.0,86760.0,0.00039252]
[1763996843749,0.323,86782.0,86760.0,0.00039252]
[1763996844009,0.323,86779.0,86760.0,0.00039252]
[1763996844229,0.09270902,86761.0,86760.0,0.00039252]
[1763996845592,0.41570902,86761.0,86760.0,0.00039252]
[1763996845795,2.41570902,86761.0,86760.0,0.00039252]
[1763996845997,2.53193033,86761.0,86760.0,0.00039252]
[1763996846195,2.41670902,86761.0,86760.0,0.00039252]
[1763996846421,2.41570902,86761.0,86760.0,0.00039252]
[1763996846850,2.46881151,86761.0,86760.0,0.00039252]
[1763996847052,2.50085803,86761.0,86760.0,0.00039252]
[1763996847255,2.53945033,86761.0,86760.0,0.00039252]
[1763996847405,2.42422902,86761.0,86760.0,0.00039252]
[1763996847608,0.324,86761.0,86760.0,0.00039252]
[1763996848047,0.323,86761.0,86760.0,0.00039252]
[1763996848451,0.324,86761.0,86760.0,0.00039252]
[1763996849011,0.8083385,86800.0,86760.0,0.00039252]
[1763996849238,0.001,86761.0,86760.0,0.00039252]
[1763996849799,0.00752,86776.0,86760.0,0.00039252]
[1763996850002,0.0092709,86782.0,86760.0,0.00039252]
[1763996850003,0.323,86782.0,86760.0,0.00039252]
[1763996850205,0.323,86779.0,86760.0,0.00039252]
[1763996851172,0.00752,86778.0,86760.0,0.00039252]
[1763996852082,2.0,86768.0,86760.0,0.00039252]
[1763996852730,0.09270902,86769.0,86760.0,0.00039252]
[1763996852731,0.323,86765.0,86760.0,0.00039252]
[1763996852898,0.00752,86764.0,86760.0,0.00039252]
[1763996853363,0.00752,86763.0,86760.0,0.00039252]
[1763996854175,2.0,86796.0,86760.0,0.00039252]
[1763996854384,0.323,86794.0,86761.0,0.05128]
[1763996854610,2.0,86791.0,86761.0,0.05128]
[1763996854863,0.001,86765.0,86760.0,0.00039252]
[1763996855355,0.00752,86792.0,86761.0,0.05128]
[1763996855569,0.09270902,86784.0,86760.0,0.00039252]
[1763996855783,0.3322709,86783.0,86760.0,0.00039252]
[1763996856403,0.3322709,86783.0,86760.0,0.00139252]
[1763996857243,0.09270902,86769.0,86760.0,0.00139252]
[1763996857658,0.323,86772.0,86760.0,0.00039252]
[1763996858299,0.00999999,86810.0,86761.0,0.05128]
[1763996858503,0.10197992,86798.0,86761.0,0.05128]
[1763996858711,0.323,86797.0,86761.0,0.05128]
[1763996858920,0.0092709,86798.0,86761.0,0.05128]
[1763996859197,2.0,86809.0,86761.0,0.05128]
[1763996859404,0.00752,86810.0,86780.0,0.09270902]
[1763996859611,0.00752,86810.0,86766.0,0.09270902]
[1763996859612,0.09370902,86798.0,86772.0,0.00752]
[1763996860023,0.09370902,86798.0,86769.0,0.02735]
[1763996860449,0.09370902,86798.0,86780.0,0.09270902]
[1763996860450,0.001,86798.0,86780.0,0.09270902]
[1763996860653,0.00752,86806.0,86780.0,0.09270902]
[1763996861077,2.0,86805.0,86769.0,0.02735]
[1763996861301,0.323,86802.0,86769.0,0.03487]
[1763996861524,0.09270902,86795.0,86769.0,0.00752]
[1763996861758,0.09270902,86795.0,86770.0,0.02735]
[1763996861976,0.00999999,86830.0,86781.0,0.09270902]
[1763996862179,2.03959739,86825.0,86795.0,0.09270902]
[1763996862384,2.02138493,86824.0,86798.0,0.01]
[1763996862622,2.0,86823.0,86795.0,0.09270902]
[1763996862855,0.323,86822.0,86795.0,0.09270902]
[1763996863316,0.323,86822.0,86795.0,0.00011723]
[1763996863519,0.09270902,86812.0,86795.0,0.00011723]
[1763996863717,0.09270902,86798.0,86795.0,0.00011723]
[1763996863923,0.323,86808.0,86795.0,0.00011723]
[1763996864131,0.00752,86824.0,86796.0,0.16130902]
[1763996864352,0.00752,86824.0,86795.0,0.00011723]
[1763996864353,0.20793033,86823.0,86795.0,0.00011723]
[1763996864560,0.41570902,86823.0,86795.0,0.00011723]
[1763996865172,0.00752,86822.0,86796.0,0.09270902]
[1763996865376,0.09270902,86823.0,86796.0,0.09270902]
[1763996865579,0.323,86822.0,86796.0,0.09270902]
[1763996866226,0.001,86823.0,86797.0,0.0686]
[1763996866432,0.001,86823.0,86821.0,0.03226]
[1763996866635,0.001,86823.0,86822.0,0.01]
[1763996866860,0.001,86823.0,86821.0,0.03226]
[1763996867049,0.00025276,86840.0,86816.0,0.00752]
[1763996867255,0.001,86823.0,86816.0,0.00752]
[1763996867463,0.001,86823.0,86817.0,0.06595]
[1763996867665,0.00025276,86840.0,86834.0,0.01]
[1763996867871,0.00025276,86840.0,86822.0,0.0322]
[1763996867872,0.00025276,86840.0,86829.0,0.00752]
[1763996868080,0.00025276,86840.0,86831.0,0.09270902]
[1763996868660,0.00025276,86840.0,86822.0,0.0322]
[1763996868873,0.00025276,86840.0,86810.0,0.06595]
[1763996869070,0.00025276,86840.0,86811.0,0.10022902]
[1763996869272,0.00025276,86840.0,86827.0,0.09270902]
[1763996869957,0.00025276,86840.0,86828.0,0.00752]
[1763996870590,0.00025276,86840.0,86798.0,0.4]
[1763996870795,0.00025276,86840.0,86812.0,0.09270902]
[1763996870796,0.09270902,86839.0,86812.0,0.09270902]
[1763996871001,0.09270902,86839.0,86798.0,0.4]
[1763996871002,0.33229618,86838.0,86798.0,0.4]
[1763996871160,0.09270902,86825.0,86796.0,0.09270902]
[1763996871359,0.323,86836.0,86799.0,0.00752]
[1763996871593,0.09270902,86825.0,86799.0,0.00752]
[1763996872002,0.09270902,86825.0,86785.0,0.06595]
[1763996872373,2.0,86822.0,86775.0,0.06595]
[1763996872551,0.09270902,86825.0,86766.0,0.09270902]
[1763996872552,0.323,86819.0,86781.0,0.09270902]
[1763996872811,0.323,86819.0,86766.0,0.09270902]
[1763996872812,0.37510249,86815.0,86776.0,0.00752]
[1763996873010,0.79833851,86800.0,86754.0,0.06595]
[1763996873261,0.323,86797.0,86755.0,0.00752]
[1763996873484,0.09270902,86787.0,86761.0,0.09270902]
[1763996873629,0.323,86795.0,86761.0,0.09270902]
[1763996873829,0.50999999,86820.0,86775.0,0.09270902]
[1763996874036,0.323,86806.0,86775.0,0.09270902]
[1763996874255,0.001,86800.0,86778.0,0.01]
[1763996874495,0.001,86800.0,86776.0,0.08899784]
[1763996874637,0.00011771,86800.0,86776.0,0.08899784]
[1763996875041,0.00011771,86800.0,86777.0,0.06595]
[1763996875244,0.00011771,86800.0,86775.0,0.09270902]
[1763996875245,0.00011771,86800.0,86778.0,0.00752]
[1763996875888,0.09270902,86799.0,86776.0,0.09270902]
[1763996876100,0.00928267,86798.0,86768.0,0.00752]
[1763996876516,0.33228267,86798.0,86768.0,0.00752]
[1763996876722,0.33228267,86798.0,86762.0,0.06595]
[1763996876928,0.04326294,86797.0,86766.0,0.00752]
[1763996877130,0.323,86798.0,86768.0,0.01]
[1763996877332,0.323,86798.0,86766.0,0.00752]
[1763996877540,0.323,86798.0,86763.0,0.09270902]
[1763996877541,0.09270902,86785.0,86763.0,0.00752]
[1763996877741,0.323,86797.0,86766.0,0.01]
[1763996877943,0.04158267,86796.0,86766.0,0.01]
[1763996878149,0.00011771,86800.0,86764.0,0.15865902]
[1763996878150,0.00011771,86800.0,86771.0,0.01]
[1763996878275,0.00011771,86800.0,86768.0,0.01]
[1763996878498,0.00011771,86800.0,86778.0,0.09270902]
[1763996878723,0.00011771,86800.0,86779.0,0.00752]
[1763996878924,0.00011771,86800.0,86780.0,0.01]
[1763996879128,0.00011771,86800.0,86781.0,0.00752]
[1763996879325,0.00011771,86800.0,86770.0,0.0322]
[1763996879326,0.09270902,86797.0,86775.0,0.00752]
[1763996879673,0.323,86796.0,86767.0,0.00752]
[1763996880448,0.10022902,86795.0,86767.0,0.00752]
[1763996880847,0.323,86789.0,86720.0,0.82986985]
[1763996881070,0.0101177,86800.0,86765.0,0.01]
[1763996881071,0.00763771,86800.0,86765.0,0.01]
[1763996881243,2.0,86769.0,86713.0,0.06595]
[1763996881442,0.00999999,86790.0,86713.0,0.06595]
[1763996881443,2.0,86779.0,86720.0,0.79833851]
[1763996881648,2.0,86779.0,86714.0,0.02306432]
[1763996881649,0.01751999,86800.0,86736.0,0.01]
[1763996881851,2.0,86797.0,86741.0,2.0]
[1763996882078,0.323,86779.0,86710.0,0.00999999]
[1763996882298,0.323,86779.0,86693.0,0.14246776]
[1763996882299,0.323,86777.0,86729.0,0.06595]
[1763996882498,0.02148017,86776.0,86738.0,0.01]
[1763996882700,0.323,86777.0,86739.0,0.00756]
[1763996882902,0.323,86769.0,86739.0,0.00756]
[1763996883348,0.323,86769.0,86754.0,0.09270902]
[1763996883752,0.323,86769.0,86741.0,0.02305714]
[1763996883981,0.323,86769.0,86742.0,0.10022902]
[1763996884305,0.323,86769.0,86743.0,0.01]
[1763996884521,0.323,86769.0,86730.0,0.5843732]
[1763996884522,0.5843732,86760.0,86727.0,0.06595]
[1763996884705,0.5843732,86760.0,86720.0,0.5843732]
[1763996884706,0.001,86776.0,86729.0,0.07347]
[1763996884897,0.323,86759.0,86729.0,0.06595]
[1763996885126,0.5843732,86750.0,86716.0,0.06595]
[1763996885336,2.0,86738.0,86689.0,0.06595]
[1763996885548,0.323,86709.0,86680.0,3.0]
[1763996885804,0.5843732,86700.0,86680.0,3.0]
[1763996886018,0.00752,86712.0,86680.0,3.0]
[1763996886019,0.00752,86712.0,86681.0,0.15865902]
[1763996886235,0.00752,86718.0,86696.0,0.09270902]
[1763996886443,0.00011751,86712.0,86687.0,0.01]
[1763996886653,0.00011751,86712.0,86683.0,0.01]
[1763996886861,0.00011751,86712.0,86695.0,0.09270902]
[1763996887290,0.00011751,86712.0,86696.0,0.00752]
[1763996887704,0.00011751,86712.0,86697.0,0.09270902]
[1763996888016,0.00011751,86712.0,86698.0,0.06595]
[1763996888481,0.00011751,86712.0,86696.0,0.00752]
[1763996888705,0.00011751,86712.0,86697.0,0.09270902]
[1763996889776,0.00011751,86712.0,86696.0,0.00752]
[1763996890191,0.09270902,86711.0,86680.0,3.0]
[1763996890400,0.82017473,86740.0,86695.0,0.09270902]
[1763996890614,0.85227724,86740.0,86696.0,0.00752]
[1763996890842,0.00999999,86730.0,86696.0,0.00752]
[1763996891070,0.01999998,86750.0,86696.0,0.07347]
[1763996891071,0.80017475,86750.0,86696.0,0.07347]
[1763996891285,2.0,86744.0,86709.0,0.10270902]
[1763996891523,0.09270902,86779.0,86723.0,0.09270902]
[1763996891729,0.00752,86770.0,86724.0,0.03058166]
[1763996891932,0.10273192,86763.0,86731.0,0.01]
[1763996892147,0.09270902,86763.0,86724.0,0.00752]
[1763996892365,0.09270902,86749.0,86713.0,0.06595]
[1763996892596,0.09270902,86748.0,86723.0,0.09270902]
[1763996892796,0.09270902,86747.0,86723.0,0.09270902]
[1763996893002,0.09270902,86747.0,86714.0,0.00752]
[1763996893441,0.001,86729.0,86700.0,0.06595]
[1763996893696,0.001,86729.0,86710.0,0.00752]
[1763996893913,0.09270902,86724.0,86705.0,0.00752]
[1763996894120,0.09270902,86724.0,86682.0,0.06316]
[1763996894334,0.09270902,86710.0,86683.0,0.00752]
[1763996894536,0.10022902,86710.0,86683.0,0.00752]
[1763996894755,0.10022902,86710.0,86681.0,0.09270902]
[1763996894756,0.323,86707.0,86680.0,3.0]
[1763996894996,0.09270902,86695.0,86680.0,3.0]
[1763996895215,0.09270902,86694.0,86680.0,3.0]
[1763996895428,0.09270902,86694.0,86680.0,3.00039252]
[1763996895429,2.323,86689.0,86680.0,3.00039252]
[1763996895642,0.323,86685.0,86680.0,3.00039252]
[1763996895848,0.323,86682.0,86680.0,3.00039252]
[1763996896057,0.81017474,86690.0,86680.0,3.00039252]
[1763996896058,0.90288376,86710.0,86680.0,3.00039252]
[1763996896297,0.09270902,86690.0,86680.0,3.00039252]
[1763996896716,0.09270902,86690.0,86689.0,0.00199501]
[1763996896924,0.323,86691.0,86689.0,0.00199501]
[1763996897158,0.09270902,86690.0,86680.0,3.00039252]
[1763996897568,0.002,86706.0,86680.0,3.00039252]
[1763996897787,0.10022902,86709.0,86705.0,0.00148807]